Cogmind - Beta 15 @@@ ROGUE MODE // 2025.09.27 @ 16:37:38 Player: bluemonk Result: Destroyed self via exploding Nuclear Reactor Performance ------------- Evolutions (0) 0 Regions Visited (1) 200 Robots Destroyed (8) 40 Value Destroyed (184) 184 Prototype IDs (0) 0 Alien Tech Used (0) 0 Bonus (0) 0 TOTAL SCORE: 424 Bonus ------- None Cogmind --------- Core Integrity 0/250 Matter 111/450 Energy 237/250 System Corruption 0% Temperature Cool (30) Movement Walking (190) Ox1 Location -10/Materials Parts ------- > --- POWER (1) -------- Ion Engine > --- PROPULSION (2) --- Aluminum Leg > --- UTILITY (2) ------ Medium Storage Unit Large Matter Pod > --- WEAPON (2) ------- Small Laser > --- INVENTORY (10) --- Light Ion Engine Tractor Beam Peak State ------------ > --- POWER ------------ Ion Engine > --- PROPULSION ------- Light Treads Light Treads > --- UTILITY ---------- Small Storage Unit Large Matter Pod > --- WEAPON ----------- Assault Rifle Assault Rifle > --- INVENTORY -------- Ion Engine Aluminum Leg Aluminum Leg Compact Wheel Compact Wheel Small Laser [Rating: 7] Favorites ----------- Power Ion Engine Engine Ion Engine Propulsion Light Treads Treads Light Treads Leg Aluminum Leg Wheel Compact Wheel Utility Small Storage Unit Storage Small Storage Unit Weapon Assault Rifle Energy Gun Small Laser Ballistic Gun Assault Rifle Build | -11 -10 ------- Run | Yrd Mat Slots Evolved . | . . Power . | . . Propulsion . | . . Utility . | . . Weapon . | . . Parts Attached 15 | 6 9 Power 2 | 1 1 Engine 2 | 1 1 Core . | . . Reactor . | . . Propulsion 5 | 2 3 Treads 2 | 2 . Leg 1 | . 1 Wheel 2 | . 2 Hover . | . . Flight . | . . Utility 3 | 1 2 Device . | . . Storage 3 | 1 2 Processor . | . . Hackware . | . . Protection . | . . Artifact . | . . Weapon 5 | 2 3 Energy Gun 2 | . 2 Energy Cannon . | . . Ballistic Gun 3 | 2 1 Ballistic Cannon . | . . Launcher . | . . Special Weapon . | . . Impact Weapon . | . . Slashing Weapon . | . . Piercing Weapon . | . . Special Melee Weapon . | . . Unidentified Prototypes . | . . Parts Lost 9 | . 9 Power 1 | . 1 Propulsion 4 | . 4 Utility . | . . Weapon 4 | . 4 Highest Loss Streak 9 | . 9 To Critical Strikes . | . . Average Backups 5 | 2 6 Power 1 | . 1 Propulsion 3 | 1 3 Utility . | . . Weapon 1 | . 1 Tool/Special . | . . Unused Backups 3 | . 3 Power 1 | . 1 Propulsion 1 | . 1 Utility 1 | . 1 Weapon . | . . Tool/Special . | . . Average Slot Usage (%) 93 | . 93 Engine 13 | . 13 Treads 24 | . 24 Wheel 1 | . 1 Storage 25 | . 25 Energy Gun 1 | . 1 Ballistic Gun 25 | . 25 Peak Build Rating 7 | 6 7 Average Rating 6 | 4 6 On Entrance 3 | . 6 Naked Turns . | . . Heaviest Build 22 | 14 22 Greatest Support 40 | 40 40 Greatest Overweight (x) 1 | 1 1 Average Overweight (x) . | . . Largest Inventory Capacity 10 | 8 10 Average Capacity 8 | 7 8 Most Carried 8 | 6 8 Average Carried 5 | 3 6 Final Capacity 10 | 8 10 Final Carried 6 | 6 2 Class Distribution -------------------- 100% | Mutant Dominant Class ---------------- Mutant | -10/Materials Resources | -11 -10 ----------- Run | Yrd Mat Matter Collected 279 | 235 44 Remotely . | . . Salvage Created 198 | . 198 Parts 13 | . 13 Haulers Intercepted . | . . Recyclers Shooed . | . . Parts Field Recycled . | . . Retrieved Matter . | . . Parts Self-Destructed . | . . Prevented . | . . Kills | -11 -10 ------- Run | Yrd Mat Combat Hostiles Destroyed 6 | . 6 Guns 4 | . 4 AOE 2 | . 2 Classes Destroyed 4 | . 4 Mechanic 1 | . 1 Watcher 1 | . 1 Swarmer 3 | . 3 Grunt 3 | . 3 Best Kill Streak 4 | . 4 Combat Bots Only 3 | . 3 Max Kills in Single Turn 3 | . 3 Gunslinging . | . . Exploded 2 | . 2 Melee . | . . Uniques/NPCs Destroyed . | . . Combat | -11 -10 -------- Run | Yrd Mat Hostile Shots Fired 141 | . 141 Missed 36 | . 36 Hits 105 | . 105 Projectile 105 | . 105 Damage Taken 1196 | . 1196 Core 265 | . 265 Absorbed by Shields . | . . Core Remaining (%) 100 | 100 . Volleys Fired 37 | . 37 Largest 2 | . 2 Hottest 60 | . 60 Shots Fired 69 | . 69 Gun 69 | . 69 Cannon . | . . Launcher . | . . Special . | . . Kinetic 58 | . 58 Thermal 11 | . 11 Explosive . | . . Electromagnetic . | . . Robot Hit Streak 12 | . 12 Robot Miss Streak 7 | . 7 Penetration Max . | . . Secondary Targets 1 | . 1 Max Gunslinging Chain 1 | . 1 Shots Hit Robots 46 | . 46 Core Hits 13 | . 13 Critical Kills . | . . Critical Parts Destroyed . | . . Critical Strikes . | . . Melee Attacks . | . . Impact . | . . Slashing . | . . Piercing . | . . Sneak Attacks . | . . Combat Hostiles . | . . Follow-up Attacks . | . . Damage Inflicted 1007 | . 1007 Guns 598 | . 598 Cannons . | . . Explosions 406 | . 406 Melee . | . . Ramming 3 | . 3 Kinetic 500 | . 500 Thermal 98 | . 98 Explosive 406 | . 406 Electromagnetic . | . . Impact . | . . Slashing . | . . Piercing . | . . Highest Corruption . | . . Average Corruption . | . . Corruption Purged . | . . Corruption Blocked . | . . Overload Shots . | . . Overflow Damage 71 | . 71 Projectiles . | . . Explosions 71 | . 71 Melee . | . . Knockbacks . | . . Impact . | . . Kinetic . | . . Secondary . | . . Self-Inflicted Damage 88 | . 88 Shots 1 | . 1 Rammed 1 | . 1 Targets Rammed 1 | . 1 Kicked . | . . Crushed . | . . Highest Temperature 152 | . 152 Average Temperature 45 | . 45 Received Heat Transfer 561 | . 561 Siege Activations . | . . Martial Activations . | . . Shielding Activations . | . . Robots Disrupted . | . . Combat Hostiles . | . . Robots Corrupted . | . . Combat Hostiles . | . . Parts Fried . | . . Impact Corruptions . | . . Robots Melted . | . . Combat Hostiles . | . . Parts Melted . | . . Heat Transferred 225 | . 225 Parts Sabotaged . | . . Parts Stolen . | . . Parts Stripped . | . . Power Chain Reactions . | . . Alert | -11 -10 ------- Run | Yrd Mat Maximum Alert Level . | . . Low Security (%) 100 | 100 100 Level 1 . | . . Level 2 . | . . Level 3 . | . . Level 4 . | . . Level 5 . | . . High Security . | . . Max Security . | . . Peak Influence 67 | . 67 Initial . | . . Average 15 | . 18 Influence Increases 184 | . 184 Destroy 0b10 Robot/C 120 | . 120 Destroy 0b10 Robot/NC 10 | . 10 Destroy Leader 32 | . 32 Successful Hack 7 | . 7 Disable Machine 15 | . 15 Influence Decreases 124 | . 124 Time Decay 94 | . 94 Lost Part 30 | . 30 Squads Dispatched 1 | . 1 Investigation 1 | . 1 Extermination . | . . Reinforcement . | . . Assault . | . . Garrison . | . . Intercept . | . . Searches Triggered . | . . Construction Impeded . | . . Haulers Reinforced . | . . Active Scanning Responses . | . . Cargo Convoy Interrupts . | . . Stealth | -11 -10 --------- Run | Yrd Mat Distress Signals . | . . Communications Jammed . | . . Distress Signals . | . . Times Spotted 9 | . 9 Peak Tracking Total 4 | . 4 Tactical Retreats . | . . Traps | -11 -10 ------- Run | Yrd Mat Traps Triggered 1 | . 1 Indirectly . | . . Trap Hack Attempts . | . . Triggered . | . . Disarmed . | . . Reprogrammed . | . . Reused . | . . Traps Extracted . | . . Installed . | . . Triggered . | . . Machines | -11 -10 ---------- Run | Yrd Mat Machines Disabled 1 | . 1 Max in Single Turn 1 | . 1 Machines Repaired . | . . Machines Dismantled . | . . Machines Sabotaged . | . . Overloaded Fab Kills . | . . Hacking | -11 -10 --------- Run | Yrd Mat Machines Accessed 2 | . 2 Terminals 2 | . 2 Fabricators . | . . Repair Stations . | . . Recycling Units . | . . Scanalyzers . | . . Garrison Access . | . . Total Hacks 3 | . 3 Successful 2 | . 2 Failed 1 | . 1 Catastrophic . | . . Database Lockouts . | . . Manual . | . . Terminals 3 | . 3 Fabricators . | . . Repair Stations . | . . Recycling Units . | . . Scanalyzers . | . . Garrison Access . | . . Terminal Hacks 2 | . 2 Dispatch Records 1 | . 1 Maintenance Status 1 | . 1 Fabricator Hacks . | . . Repair Station Hacks . | . . Recycling Unit Hacks . | . . Scanalyzer . | . . Garrison Access Hacks . | . . Unauthorized Hacks . | . . Terminals . | . . Fabricators . | . . Repair Stations . | . . Recycling Units . | . . Scanalyzers . | . . Garrison Access . | . . Data Cores Recovered . | . . Used . | . . Hacking Detections 2 | . 2 Full Trace Events . | . . Feedback Events . | . . Feedback Blocked . | . . Robot Schematics Acquired . | . . Robots Built . | . . Authchips . | . . Time . | . . Total Robot Build Rating . | . . Part Schematics Acquired . | . . Parts Built . | . . Authchips . | . . Time . | . . Total Part Build Rating . | . . Parts Repaired . | . . Time . | . . Parts Recycled . | . . Recycled Matter . | . . Retrieved Matter . | . . Retrieved Components . | . . Parts Scanalyzed . | . . Part Schematics Acquired . | . . Parts Damaged . | . . Bothacking | -11 -10 ------------ Run | Yrd Mat Used RIF Installer . | . . Robots Hacked . | . . Non-combat . | . . Combat . | . . Robot Hacks Applied . | . . Relay Couplers Released . | . . Fabnet Peak Effective % . | . . Robots Rewired . | . . Allies Hacked . | . . Hacks Repelled . | . . Allies | -11 -10 -------- Run | Yrd Mat Total Allies . | . . Largest Group . | . . Highest-Rated Group . | . . Highest-Rated Ally . | . . Total Orders . | . . Ally Attacks . | . . Total Damage . | . . Kills . | . . Allies Corrupted . | . . Allies Melted . | . . Intel | -11 -10 ------- Run | Yrd Mat Active Infowar (turns) . | . . Robot Analysis Total . | . . Derelict Logs Recovered . | . . Drone Launches . | . . Drone Recoveries . | . . Exploration | -11 -10 ------------- Run | Yrd Mat Turns Passed 424 | 84 340 Spaces Moved 184 | 50 134 Core 12 | 12 . Treads 165 | 38 127 Legs 3 | . 3 Wheels 4 | . 4 Hover . | . . Flight . | . . Fastest Speed 50 | 50 100 Average Speed 153 | 139 158 Slowest Speed 190 | 160 190 Overloaded Moves . | . . Propulsion Burnouts . | . . Robots Hopped . | . . Potential Cave-ins . | . . Cave-ins Triggered . | . . Exploration Rate (%) 15 | 5 26 Regions Visited 1 Branch Regions . Pre-discovered Areas . | . . Known Exits Taken . | . . Unknown Exits Taken 1 | 1 . Scrap Searched . | . . Spaces Dug . | . . Terrain Destroyed . | . . Melee . | . . Projectile . | . . AOE . | . . Terrain Rammed . | . . Walls Destroyed . | . . Machines Disabled . | . . Actions | -11 -10 --------- Run | Yrd Mat Total 253 | 61 192 Wait 6 | . 6 Move 183 | 49 134 Hop . | . . Pick Up 9 | 6 3 Fast Attach 8 | 6 2 Attach 6 | . 6 Detach . | . . Swap 1 | . 1 Drop 2 | . 2 Fire 37 | . 37 Melee . | . . Ram 1 | . 1 Kick . | . . Crush . | . . Escape Stasis . | . . Rewire . | . . Trap . | . . Miscellaneous . | . . Route ------- -11/Scrapyard -10/Materials (discovered 1 exit: [*Min]) History --------- Turn | Location | Event 9 | -11/Scrapyard | Discovered new exit (range 16) 85 | -11/Scrapyard | Entered Materials 283 | -10/Materials | Discovered new exit (range 15) 330 | -10/Materials | Build established: Mutant 389 | -10/Materials | Core integrity fell below 50% 412 | -10/Materials | Core integrity fell below 20% 425 | -10/Materials | Destroyed self via exploding Nuclear Reactor Last Messages --------------- Lgt. Treads destroyed. G-47 Trooper destroyed. Ion Engine destroyed. K-01 Serf collects debris. Sml. Laser destroyed. Assault Rifle destroyed. K-01 Serf cleans the Nuclear Reactor. Com. Wheel destroyed. Slammed into G-34 Mercenary. Com. Wheel destroyed. K-01 Serf collects debris. K-01 Serf cleans the Nuclear Reactor. Acquired Sml. Laser. M-13 Machinist repairs G-34 Mercenary. K-01 Serf cleans the Nuclear Reactor. Nuclear Reactor explodes. Destroyed Ion Engine. Destroyed Lgt. Ion Engine. M-13 Machinist destroyed. G-34 Mercenary destroyed. Map ----- +----------------------------------------------------+ | ?????????????????????????????????????????????????? | | ?????????????????????????????????????????????????? | | ?????????????????????????????????????????????????? | | ?????????????????????????????????????????????????? | | ?????????????????????????????????????????????????? | | ?????????????????????????????????????????????????? | | ?????????????????????????????????????????????????? | | ?????????????????????????????????????????????????? | | ?????????????????????????????????????????????????? | | ?????????????????????????????????????????????????? | | ?????????????????????????????????????????????????? | | ?????????????????????????????????????????????????? | | ?????????????????????????????????????????????????? | | ?????????????????????????????????????????????????? | | ?????????????????????????????????????????????????? | | ?????????????????????????????????????????????????? | | ?????????????????????????????????????????????????? | | ########?????????????????????????????????????????? | | # """ #?????????????=???????????????????????????? | | # "R" #####?????""??"???????????????????????????? | | # " " # #???? ""? "???????????????????????????? | | # # +?????""? ????????????????????????????? | | # ! + #????? ????????????????????????????? | | # # #????? ?????????????????????????????? | | #####+## ##????#/#???########??????????????????? | | ????# # ###### ###?# @ % +??????????????????? | | ????# # #?# g #??????????????????? | | ????# # T #?# %#??????????????????? | | ##### # #?# =#??????????????????? | | ## # #?#!% =#??????????????????? | | "" ## ###### #?# [ *%=#???#####??????????? | | "" # = = #######k## #??????????? | | "" # =% ??????? | | # % * = < ??????? | | "" += ######### ??????? | | "" # ######### """ """ ##" "####???????? | | "" # # #! """ """ #?" |"! "#??????????? | | # # # """ """ #??""""""#??????????? | | # # # #??#######??????????? | | # # # #???????????????????? | | # # """ # """ """ #???????????????????? | | #### + """ # """ """ #???????????????????? | | ???# # """ # """ """ +???????????????????? | | ???# # # ? ? #???????????????????? | | ??## ######### ? ? #???????????????????? | | ??# #??????# ? ##+#?####???????????????????? | | ??# #????????#???????????????????????????????? | | ??# #????????????????????????????????????????? | | ??# #????????????????????????????????????????? | | ??# #????????????????????????????????????????? | +----------------------------------------------------+ Best States ------------- Heat Dissipation 25 Energy Generation 10 Energy Capacity 250 Matter Stores 275 Matter Capacity 450 Sight Range 16 Terrain Scan Density 10 Evasion (%) 40 Recoil Reduction 2 Item Schematics ----------------- None Robot Schematics ------------------ None Fabricated ------------ Nothing Repaired ---------- Nothing Alien Tech Used ----------------- None Achievements -------------- None Challenges ------------ None Game ------ Seed ThunderControlChronowheel Manual? 0 Play Time 00:05:03 Cumulative 44.1 hours Start 2025.09.27 @ 16:33:02 End 2025.09.27 @ 16:37:38 Sessions 1 Manual Loads 0 Difficulty Rogue Special Mode None Game No. 70 Rogue 70 Adventurer 0 Explorer 0 Win Type - Total 0 Types 0/0/0/0/0/0/0/0/0/0 Lore% 21 Gallery% 33 Achievement% 27 Wizard Run 0 Options --------- Layout 1 ASCII 0 Keyboard 0 Movement Numpad Keybinds 0 Fullscreen 1 Font 24/Smallcaps Map View 50x35 Zoom Use 0% Tactical HUD 0 Map Filters NONE Filters NONE Steam 1 RUN: 74ecb749-ba39-484b-9a3b-48ec8d6cb94c